Workbook

Sheet Ремонт
A2: № п/п | B2: Период проведения работ | C2: Улица | D2: № дома | E2: Фамилия И.О. | F2: Виды работ | G2: ПСД, 1 % | H2: Заработанная плата, руб. | I2: Начисления (сметная прибыль), руб. | J2: Материал +ТЗР 4%, руб. | K2: ЭММ, в т.ч. ЗПМ (общеэксплуатационные расходы), руб. | L2: Прочие (накладные расходы), руб. | M2: возмещение НДС, руб. | N2: Итого (без НДС), руб. | O2: Итого (с НДС), руб.
A3: =IF(ISBLANK(B3),"",MAX(A$2:A2)+1) -> 1 | B3: 2016-01-01 | C3: 40 лет победы | D3: 94 | E3: Филиал АО "Газпром газораспределение Чебоксары" в г. Алатыре | F3: Замена участка внутриподъездного газопровода низкого давления (30.11.2015 г.) | N3: =SUM(G3:L17) -> 0 | O3: 5570.8744
A4: =IF(ISBLANK(B4),"",MAX(A$2:A3)+1) -> 2 | B4: 2016-01-19 | C4: 40 лет победы | D4: 94 | E4: ООО "Технолифт" | F4: Замена редуктора лебедки пассажирского лифта | N4: =SUM(G4:L17) -> 0 | O4: 145877.146
A5: =IF(ISBLANK(B5),"",MAX(A$2:A4)+1) -> 3 | B5: 2016-01-21 | C5: 40 лет победы | D5: 100 | E5: ИП Дедкова И.В. | F5: Оказание автотранспортных услуг | N5: =SUM(G5:L17) -> 0 | O5: 703.8818
A6: =IF(ISBLANK(B6),"",MAX(A$2:A5)+1) -> 4 | B6: 2016-01-21 | C6: 40 лет победы | D6: 94А | E6: ИП Дедкова И.В. | F6: Оказание автотранспортных услуг | N6: =SUM(G6:L17) -> 0 | O6: 933.557
A7: =IF(ISBLANK(B7),"",MAX(A$2:A6)+1) -> 5 | B7: 2016-01-21 | C7: 40 лет победы | D7: 94А | E7: ИП Дедкова И.В. | F7: Оказание автотранспортных услуг | N7: =SUM(G7:L17) -> 0 | O7: 1017.5612
A8: =IF(ISBLANK(B8),"",MAX(A$2:A7)+1) -> 6 | B8: 2016-01-28 | C8: 40 лет победы | D8: 96 | E8: ИП Бетехтин Ю.А. | F8: Замена рубильника в доме | N8: =SUM(G8:L17) -> 0 | O8: 30242.9398
A9: =IF(ISBLANK(B9),"",MAX(A$2:A8)+1) -> 7 | B9: 2016-01-31 | C9: 40 лет победы | D9: 96 | E9: ООО "Жилремстрой" | F9: Текущий ремонт теплотрассы (24.12.2015 г.) | N9: =SUM(G9:L17) -> 0 | O9: 89734.1502
A10: =IF(ISBLANK(B10),"",MAX(A$2:A9)+1) -> 8 | B10: 2016-01-31 | C10: 40 лет победы | D10: 96 | E10: Репкин И.Л. | F10: Ремонт трубопровода горячего водоснабжения | N10: =SUM(G10:L17) -> 0 | O10: 13627.72
A11: =IF(ISBLANK(B11),"",MAX(A$2:A10)+1) -> 9 | B11: 2016-01-31 | C11: 40 лет победы | D11: 96 | E11: Репкин И.Л. | F11: Ремонт трубопровода канализации и замена ламп уличного освещения | N11: =SUM(G11:L16) -> 0 | O11: 2258.88
A12: =IF(ISBLANK(B12),"",MAX(A$2:A11)+1) -> 10 | B12: 2016-01-31 | C12: 40 лет победы | D12: 96 | E12: Репкин И.Л. | F12: Ремонт системы отопления | N12: =SUM(G12:L17) -> 0 | O12: 12310.69
A13: =IF(ISBLANK(B13),"",MAX(A$2:A12)+1) -> 11 | B13: 2016-01-31 | C13: 40 лет победы | D13: 96 | E13: Кузнецов А.А. | F13: Ремонт системы отопления | N13: =SUM(G13:L17) -> 0 | O13: 5400.7
A14: =IF(ISBLANK(B14),"",MAX(A$2:A13)+1) -> 12 | B14: 2016-01-31 | C14: 40 лет победы | D14: 96 | E14: Кузнецов А.А. | F14: Ремонт канализации | N14: =SUM(G14:L17) -> 0 | O14: 1568.2672
A15: =IF(ISBLANK(B15),"",MAX(A$2:A14)+1) -> 13 | B15: 2016-01-31 | C15: 40 лет победы | D15: 96 | E15: Репкин И.Л. | F15: Замена циркуляционного насоса на трубопроводе горячего водоснабжения | N15: =SUM(G15:L17) -> 0 | O15: 22189.487
A16: =IF(ISBLANK(B16),"",MAX(A$2:A15)+1) -> 14 | B16: 2016-02-01 | C16: 40 лет победы | D16: 96 | E16: Кузнецов А.А. | F16: Смена запорной арматуры на трубопроводе горячего водоснабжении | N16: =SUM(G16:L17) -> 0 | O16: 803.7688
A17: =IF(ISBLANK(B17),"",MAX(A$2:A16)+1) -> 15 | B17: 2016-03-01 | C17: 40 лет победы | D17: 96 | E17: Кузнецов А.А. | F17: Ремонт трубопровода канализации | N17: =SUM(G17:L17) -> 0 | O17: 39749.2912

Sheet Сводка
A1: Отчет о начислениях по текущему ремонту МЖД за 2016 год
A2: Наименование улицы | B2: № дома | C2: Остаток средств по текущему ремонту на 01.01.2016 г., руб. | D2: Начислено за 2016 г., руб. | E2: Выполнено работ по текущему ремонту, руб.
A3: 40 лет победы | B3: 94 | C3: -52734.9 | D3: 97689.12 | E3: 151448.0204
A4: 40 лет победы | B4: 94А | C4: 273918.49 | D4: 76087.64 | E4: 1951.1182
A5: 40 лет победы | B5: 96 | C5: 56028.2 | D5: 26559 | E5: 217885.8942
A6: ИТОГО: | C6: =SUM(C3:C5) -> 277211.79 | D6: =SUM(D3:D5) -> 200335.76 | E6: =SUM(E3:E5) -> 371285.0328

Sheet ОТЧЁТ
B1: Список домов на 2016
B2: Наименование улицы | C2: № дома | D2: Остаток средств по текущему ремонту на 01.01.2016 г., руб. | E2: Начислено за 2016 г., руб. | F2: Выполнено работ по текущему ремонту, руб. | G2: Месяц | H2: Описание работ | I2: Стоимость, руб. | J2: Остаток средств по текущему ремонту на 01.01.2017 г., руб.
A3: 1 | B3: 40 лет победы | C3: 94 | G3: 2016-01-01 | H3: Замена участка внутриподъездного газопровода низкого давления (30.11.2015 г.) | I3: 5570.8744 | K3: =ОТЧЁТ!H3&" "&"("&TEXT(ОТЧЁТ!G3,"ММММ")&")" -> Замена участка внутриподъездного газопровода низкого давления (30.11.2015 г.) (Январь)
A4: 2 | B4: 40 лет победы | C4: 94 | D4: -52734.9 | E4: 97689.12 | F4: 151448.0204 | G4: 2016-01-19 | H4: Замена редуктора лебедки пассажирского лифта | I4: 145877.146 | J4: -106493.8004 | K4: =H4&" "&"("&TEXT(G4,"ММММ")&")" -> Замена редуктора лебедки пассажирского лифта (Январь)
A5: 6 | B5: 40 лет победы | C5: 96 | G5: 2016-01-28 | H5: Замена рубильника в доме | I5: 30242.9398 | K5: =H5&" "&"("&TEXT(G5,"ММММ")&")" -> Замена рубильника в доме (Январь)
A6: 7 | B6: 40 лет победы | C6: 96 | G6: 2016-01-31 | H6: Текущий ремонт теплотрассы (24.12.2015 г.) | I6: 89734.1502 | K6: Текущий ремонт теплотрассы (24.12.2015 г.) (Январь)
A7: 8 | B7: 40 лет победы | C7: 96 | G7: 2016-01-31 | H7: Ремонт трубопровода горячего водоснабжения | I7: 13627.72 | K7: Ремонт трубопровода горячего водоснабжения (Январь)
A8: 9 | B8: 40 лет победы | C8: 96 | G8: 2016-01-31 | H8: Ремонт трубопровода канализации и замена ламп уличного освещения | I8: 2258.88 | K8: Ремонт трубопровода канализации и замена ламп уличного освещения (Январь)
A9: 10 | B9: 40 лет победы | C9: 96 | G9: 2016-01-31 | H9: Ремонт системы отопления | I9: 12310.69 | K9: Ремонт системы отопления (Январь)
A10: 11 | B10: 40 лет победы | C10: 96 | G10: 2016-01-31 | H10: Ремонт системы отопления | I10: 5400.7 | K10: Ремонт системы отопления (Январь)
A11: 12 | B11: 40 лет победы | C11: 96 | G11: 2016-01-31 | H11: Ремонт канализации | I11: 1568.2672 | K11: Ремонт канализации (Январь)
A12: 13 | B12: 40 лет победы | C12: 96 | G12: 2016-01-31 | H12: Замена циркуляционного насоса на трубопроводе горячего водоснабжения | I12: 22189.487 | K12: Замена циркуляционного насоса на трубопроводе горячего водоснабжения (Январь)
A13: 14 | B13: 40 лет победы | C13: 96 | G13: 2016-02-01 | H13: Смена запорной арматуры на трубопроводе горячего водоснабжении | I13: 803.7688 | K13: Смена запорной арматуры на трубопроводе горячего водоснабжении (Февраль)
A14: 15 | B14: 40 лет победы | C14: 96 | D14: 56028.2 | E14: 26559 | F14: 217885.8942 | G14: 2016-03-01 | H14: Ремонт трубопровода канализации | I14: 39749.2912 | J14: -135298.6942 | K14: Ремонт трубопровода канализации (Март)
A15: 3 | B15: 40 лет победы | C15: 100 | F15: 703.8818 | G15: 2016-01-21 | H15: Оказание автотранспортных услуг | I15: 703.8818 | J15: -703.8818 | K15: Оказание автотранспортных услуг (Январь)
A16: 4 | B16: 40 лет победы | C16: 94А | G16: 2016-01-21 | H16: Оказание автотранспортных услуг | I16: 933.557 | K16: Оказание автотранспортных услуг (Январь)
A17: 5 | B17: 40 лет победы | C17: 94А | D17: 273918.49 | E17: 76087.64 | F17: 1951.1182 | G17: 2016-01-21 | H17: Оказание автотранспортных услуг | I17: 1017.5612 | J17: 348055.0118 | K17: Оказание автотранспортных услуг (Январь)

Sheet Адрес
A1: Улицы | B1: Улица | C1: Дом
A2: 40 лет победы | B2: 40 лет победы | C2: 94 | D2: ="г.Алатырь, "&B2&","&" д."&C2 -> г.Алатырь, 40 лет победы, д.94
A3: III Интернационала | B3: 40 лет победы | C3: 94А | D3: ="г.Алатырь, "&B3&","&" д."&C3 -> г.Алатырь, 40 лет победы, д.94А
B4: 40 лет победы | C4: 96 | D4: г.Алатырь, 40 лет победы, д.96

Sheet 40 лет Победы,94
A2: ОТЧЕТ
A3: ООО "Управление ЖКХ" перед собственниками о стоимости работ и услуг по содержанию и ремонту жилья за период с 01.01.2016 по 31.12.2016 года
A5: Характеристика многоквартирного дома
A6: Адрес МКД | B6: г.Алатырь, 40 лет победы, д.94
A7: Год ввода в эксплуатацию | B7: 1990
A8: Количество подъездов | B8: 3
A9: Количество проживающих, чел. | B9: 132
A10: Количество квартир | B10: 60
A11: Количество этажей | B11: 5
A12: Количество лифтов | B12: 0
A13: Материал стен | B13: панель
A14: Материал крыши | B14: рулонные наплавляемые материалы
A15: Общая полезная площадь МКД, кв.м. | B15: 3204.96
A16: Действующий тариф на содержание жилья | B16: 11.63
A18: Дебиторская задолженность по дому по состоянию на 01.01.2016 | B18: 345231.32
A19: по состоянию на 31.12.2016 | B19: 232133.29
A20: Затраты ООО "Управление ЖКХ" по оплате услуг ресурсоснабжающих организаций | B20: =B21 -> 633776.62
A21: из них предъявлено собственникам и нанимателям | B21: 633776.62
A22: из них оплачено собственниками | B22: 750349.43
A24: Начислено по статье "Содержание помещений" | B24: 447284.34
A25: Оплачено собственниками за услуги по содержанию помещений | B25: 444515.75
A27: Предоставлено услуг по управлению, содержанию общего имущества МКД
A28: Наименование статей расходов | B28: затраты в год, руб.
A29: Техническое обслуживание внутридомовых инженерных сетей и конструктивных элементов дома: | B29: =B30+B31+B32 -> 147478.25
A30: Обслуживание конструктивных элементов дома, сантехнического, инженерного, электрооборудования и электрических сетей, техническое обслуживание приборов учета энергоресурсов | B30: 126207.93
A31: Расходы по эксплуатации, свидетельствованию лифтов | B31: 0
A32: Аварийно-диспетчерское обслуживание | B32: 21270.32
A33: Санитарное содержание мест общего пользования и придомовых территорий: | B33: =B34+B35 -> 161347.95
A34: Уборка и благоустройство придомовой территории, мест общего пользования, дератизация и дезинсекция | B34: 123389.05
A35: Сбор и вывоз ТБО, крупногабаритного мусора | B35: 37958.9
A36: Расходы по управлению | B36: 100990.56
A37: Итого расходов | B37: =B29+B33+B36 -> 409816.76
A39: Начислено по статье "Текущий ремонт" | B39: 96150.72
A40: Начислено по статье "Разовые сборы" | B40: 1538.4
A41: Доход от размещения оборудования связи, аренды имущества | B41: 0
A42: Оплачено собственниками за услуги по ремонту, разовые сборы | B42: 96982.9
A44: Предоставлено услуг по текущему ремонту МКД
A45: Наименование статей расходов | B45: затраты в год, руб.
A46: Замена участка внутриподъездного газопровода низкого давления (30.11.2015 г.) (Январь) | B46: 5570.8744
A47: Замена редуктора лебедки пассажирского лифта (Январь) | B47: 145877.146
A48: Итого расходов | B48: =SUM(B46:B47) -> 151448.0204

Sheet 40 лет Победы,94А
A2: ОТЧЕТ
A3: ООО "Управление ЖКХ" перед собственниками о стоимости работ и услуг по содержанию и ремонту жилья за период с 01.01.2016 по 31.12.2016 года
A5: Характеристика многоквартирного дома
A6: Адрес МКД | B6: г.Алатырь, 40 лет победы, д.94А
A7: Год ввода в эксплуатацию | B7: 2010
A8: Количество подъездов | B8: 3
A9: Количество проживающих, чел. | B9: 89
A10: Количество квартир | B10: 60
A11: Количество этажей | B11: 5
A12: Количество лифтов | B12: 0
A13: Материал стен | B13: кирпич
A14: Материал крыши | B14: асбестоцементные плиты
A15: Общая полезная площадь МКД, кв.м. | B15: 2484.9
A16: Действующий тариф на содержание жилья | B16: 11.63
A18: Дебиторская задолженность по дому по состоянию на 01.01.2016 | B18: 60946.1
A19: по состоянию на 31.12.2016 | B19: 47370.53
A20: Затраты ООО "Управление ЖКХ" по оплате услуг ресурсоснабжающих организаций | B20: =B21 -> 3381.74
A21: из них предъявлено собственникам и нанимателям | B21: 3381.74
A22: из них оплачено собственниками | B22: 3323.13
A24: Начислено по статье "Содержание помещений" | B24: 346793.89
A25: Оплачено собственниками за услуги по содержанию помещений | B25: 358018.25
A27: Предоставлено услуг по управлению, содержанию общего имущества МКД
A28: Наименование статей расходов | B28: затраты в год, руб.
A29: Техническое обслуживание внутридомовых инженерных сетей и конструктивных элементов дома: | B29: =B30+B31+B32 -> 114344.23
A30: Обслуживание конструктивных элементов дома, сантехнического, инженерного, электрооборудования и электрических сетей, техническое обслуживание приборов учета энергоресурсов | B30: 97852.73
A31: Расходы по эксплуатации, свидетельствованию лифтов | B31: 0
A32: Аварийно-диспетчерское обслуживание | B32: 16491.5
A33: Санитарное содержание мест общего пользования и придомовых территорий: | B33: =B34+B35 -> 125097.82
A34: Уборка и благоустройство придомовой территории, мест общего пользования, дератизация и дезинсекция | B34: 95667.17
A35: Сбор и вывоз ТБО, крупногабаритного мусора | B35: 29430.65
A36: Расходы по управлению | B36: 78300.96
A37: Итого расходов | B37: =B29+B33+B36 -> 317743.01
A39: Начислено по статье "Текущий ремонт" | B39: 74547.01
A40: Начислено по статье "Разовые сборы" | B40: 1540.63
A41: Доход от размещения оборудования связи, аренды имущества | B41: 0
A42: Оплачено собственниками за услуги по ремонту, разовые сборы | B42: 78497.48
A44: Предоставлено услуг по текущему ремонту МКД
A45: Наименование статей расходов | B45: затраты в год, руб.
A46: Оказание автотранспортных услуг (Январь) | B46: 933.557
A47: Оказание автотранспортных услуг (Январь) | B47: 1017.5612
A48: Итого расходов | B48: =SUM(B46:B47) -> 1951.1182

Sheet 40 лет Победы,96
A2: ОТЧЕТ
A3: ООО "Управление ЖКХ" перед собственниками о стоимости работ и услуг по содержанию и ремонту жилья за период с 01.01.2016 по 31.12.2016 года
A5: Характеристика многоквартирного дома
A6: Адрес МКД | B6: г.Алатырь, 40 лет победы, д.96
A7: Год ввода в эксплуатацию | B7: 1979
A8: Количество подъездов | B8: 3
A9: Количество проживающих, чел. | B9: 16
A10: Количество квартир | B10: 18
A11: Количество этажей | B11: 2
A12: Количество лифтов | B12: 0
A13: Материал стен | B13: кирпич
A14: Материал крыши | B14: рулонные наплавляемые материалы
A15: Общая полезная площадь МКД, кв.м. | B15: 834.13
A16: Действующий тариф на содержание жилья | B16: 11.63
A18: Дебиторская задолженность по дому по состоянию на 01.01.2016 | B18: 306423.18
A19: по состоянию на 31.12.2016 | B19: 340022.26
A20: Затраты ООО "Управление ЖКХ" по оплате услуг ресурсоснабжающих организаций | B20: =B21 -> 93692.65
A21: из них предъявлено собственникам и нанимателям | B21: 93692.65
A22: из них оплачено собственниками | B22: 90287.8
A24: Начислено по статье "Содержание помещений" | B24: 113241.82
A25: Оплачено собственниками за услуги по содержанию помещений | B25: 88661.87
A27: Предоставлено услуг по управлению, содержанию общего имущества МКД
A28: Наименование статей расходов | B28: затраты в год, руб.
A29: Техническое обслуживание внутридомовых инженерных сетей и конструктивных элементов дома: | B29: =B30+B31+B32 -> 38383.02
A30: Обслуживание конструктивных элементов дома, сантехнического, инженерного, электрооборудования и электрических сетей, техническое обслуживание приборов учета энергоресурсов | B30: 32847.16
A31: Расходы по эксплуатации, свидетельствованию лифтов | B31: 0
A32: Аварийно-диспетчерское обслуживание | B32: 5535.86
A33: Санитарное содержание мест общего пользования и придомовых территорий: | B33: =B34+B35 -> 41992.78
A34: Уборка и благоустройство придомовой территории, мест общего пользования, дератизация и дезинсекция | B34: 32113.51
A35: Сбор и вывоз ТБО, крупногабаритного мусора | B35: 9879.27
A36: Расходы по управлению | B36: 26284.03
A37: Итого расходов | B37: =B29+B33+B36 -> 106659.83
A39: Начислено по статье "Текущий ремонт" | B39: 25024.2
A40: Начислено по статье "Разовые сборы" | B40: 1534.8
A41: Доход от размещения оборудования связи, аренды имущества | B41: 0
A42: Оплачено собственниками за услуги по ремонту, разовые сборы | B42: 20944.72
A44: Предоставлено услуг по текущему ремонту МКД
A45: Наименование статей расходов | B45: затраты в год, руб.
A46: Замена рубильника в доме (Январь) | B46: 30242.9398
A47: Текущий ремонт теплотрассы (24.12.2015 г.) (Январь) | B47: 89734.1502
A48: Ремонт трубопровода горячего водоснабжения (Январь) | B48: 13627.72
A49: Ремонт трубопровода канализации и замена ламп уличного освещения (Январь) | B49: 2258.88
A50: Ремонт системы отопления (Январь) | B50: 12310.69
A51: Ремонт системы отопления (Январь) | B51: 5400.7
A52: Ремонт канализации (Январь) | B52: 1568.2672
A53: Замена циркуляционного насоса на трубопроводе горячего водоснабжения (Январь) | B53: 22189.487
A54: Смена запорной арматуры на трубопроводе горячего водоснабжении (Февраль) | B54: 803.7688
A55: Ремонт трубопровода канализации (Март) | B55: 39749.2912
A56: Итого расходов | B56: =SUM(B46:B55) -> 217885.8942
